bitfinex/quotes_SOLUSD_20260119
["timestamp","ask_amount","ask_price","bid_price","bid_amount"]
[1768857453032,2.97399715,134.37,134.34,1.46522246]
[1768857453232,2.97399715,134.38,134.34,1.46522246]
[1768857453614,2.97399715,134.35,134.32,1.56522246]
[1768857454012,16.3,134.39,134.32,0.1]
[1768857454213,2.97399715,134.35,134.32,0.1]
[1768857454418,2.97399715,134.35,134.32,1.56522246]
[1768857454615,2.97399715,134.35,134.32,0.1]
[1768857454930,2.97399715,134.35,134.31,1.46522246]
[1768857454931,2.97399715,134.33,134.3,0.1]
[1768857455134,2.97399715,134.32,134.3,0.1]
[1768857455322,2.97399715,134.31,134.28,1.46522246]
[1768857455632,2.97399715,134.31,134.27,2.97399715]
[1768857455633,2.97399715,134.31,134.27,1.46522246]
[1768857455807,26.0574125,134.32,134.26,17.86522246]
[1768857456006,2.97399715,134.3,134.27,1.46522246]
[1768857457230,10.42008988,134.3,134.27,1.46522246]
[1768857458335,7.44609273,134.3,134.27,1.46522246]
[1768857458517,7.44609273,134.3,134.26,1.56522246]
[1768857458518,10.42008988,134.3,134.26,1.56522246]
[1768857458716,2.97399715,134.29,134.26,1.56522246]
[1768857458914,2.97399715,134.27,134.19,18.63000134]
[1768857459130,42.36113368,134.3,134.23,1.46522246]
[1768857459131,2.97399715,134.26,134.23,1.46522246]
[1768857459327,2.97399715,134.26,134.22,1.56522246]
[1768857459535,10.42187478,134.27,134.23,1.46522246]
[1768857459856,102.1,134.32,134.27,1.46522246]
[1768857460140,102.1,134.32,134.28,4.43921961]
[1768857460314,105.07399715,134.32,134.28,4.43921961]
[1768857460716,2.97399715,134.32,134.28,4.43921961]
[1768857461120,10.4189701,134.32,134.28,1.46522246]
[1768857461921,2.97399715,134.31,134.28,1.46522246]
[1768857462539,2.97399715,134.3,134.28,1.46522246]
[1768857462730,2.97399715,134.3,134.26,1.39786963]
[1768857463039,10.4201743,134.3,134.26,1.39786963]
[1768857463222,2.97399715,134.28,134.25,1.39786963]
[1768857463423,2.97399715,134.29,134.25,1.39786963]
[1768857463833,2.97399715,134.28,134.25,1.39786963]
[1768857464232,2.97399715,134.28,134.23,7.44971023]
[1768857464540,2.97399715,134.25,134.22,1.49786963]
[1768857464739,2.97399715,134.24,134.22,1.49786963]
[1768857465145,2.97399715,134.25,134.22,1.49786963]
[1768857465344,2.97399715,134.24,134.22,1.49786963]
[1768857465840,2.91399716,134.24,134.22,1.49786963]
[1768857466147,2.97399715,134.23,134.19,7.45169818]
[1768857466445,2.97399715,134.24,134.2,7.45131641]
[1768857466627,8.70882642,134.26,134.21,7.45097807]
[1768857466828,2.97399715,134.25,134.21,7.45097807]
[1768857467035,2.97399715,134.25,134.2,7.45136244]
[1768857467235,11.79040279,134.25,134.2,2.97399715]
[1768857467629,11.79040279,134.25,134.21,2.97399715]
[1768857467828,4.34149421,134.25,134.21,2.97399715]
[1768857468046,1.36749706,134.27,134.23,1.39786963]
[1768857468341,10.42023954,134.3,134.26,1.39786963]
[1768857468547,11.7877366,134.3,134.26,1.39786963]
[1768857470832,8.81373945,134.3,134.26,1.39786963]
[1768857471026,11.7877366,134.3,134.26,1.39786963]
[1768857471350,8.81373945,134.3,134.27,1.39786963]
[1768857475870,102.1,134.32,134.3,1.46585124]
[1768857476028,1.48077507,134.33,134.3,1.43585124]
[1768857476225,1.48077507,134.33,134.3,4.40984839]
[1768857477254,1.48077507,134.33,134.3,1.43585124]
[1768857477458,1.48077507,134.33,134.3,4.40984839]
[1768857478154,1.48077507,134.33,134.3,1.43585124]
[1768857478334,1.48077507,134.33,134.3,4.40984839]
[1768857480653,1.48077507,134.33,134.3,1.43585124]
[1768857480839,1.48077507,134.36,134.32,4.44573961]
[1768857481157,1.48077507,134.36,134.33,2.97988837]
[1768857481353,1.48077507,134.36,134.32,4.44573961]
[1768857481556,2.97988837,134.35,134.31,1.46585124]
[1768857481764,4.46066344,134.34,134.3,1.46585124]
[1768857482440,1.48077507,134.34,134.3,4.44573961]
[1768857482640,11.90473321,134.34,134.3,1.46585124]
[1768857483256,8.92484484,134.34,134.3,1.46585124]
[1768857483764,8.92484484,134.34,134.31,1.46585124]
[1768857484256,7.44406977,134.34,134.31,1.46585124]
[1768857485557,8.92484484,134.34,134.31,1.46585124]
[1768857486135,11.90473321,134.34,134.31,1.46585124]
[1768857486448,1.48077507,134.33,134.3,1.46585124]
[1768857492544,2.97988837,134.35,134.3,1.46585124]
[1768857492545,8.92415941,134.35,134.31,1.46585124]
[1768857493159,4.46066344,134.37,134.32,1.46585124]
[1768857493358,1.48077507,134.37,134.33,4.41573961]
[1768857493551,1.48077507,134.37,134.33,1.40585124]
[1768857493751,1.48077507,134.37,134.33,10.42416633]
[1768857495554,1.48077507,134.37,134.33,11.89001757]
[1768857495963,8.92297861,134.37,134.33,11.89001757]
[1768857497066,1.48077507,134.37,134.34,1.46585124]
[1768857497868,8.92299997,134.37,134.34,1.46585124]
[1768857499272,1.48077507,134.35,134.31,1.46585124]
[1768857500468,1.48077507,134.35,134.31,8.91098258]
[1768857500766,1.48077507,134.35,134.32,1.46585124]
[1768857500970,11.90356125,134.36,134.32,1.46585124]
[1768857501469,1.48077507,134.35,134.32,1.46585124]
[1768857504961,9.03203002,134.37,134.34,1.56110266]
[1768857505165,10.42223257,134.37,134.32,10.42457385]
[1768857505356,1.58968582,134.36,134.32,9.00578814]
[1768857505875,1.58968582,134.36,134.33,1.56110266]
[1768857508866,9.03267694,134.36,134.33,1.56110266]
[1768857509574,12.01256531,134.36,134.33,1.56110266]
[1768857509778,1.58968582,134.38,134.33,1.56110266]
[1768857509975,1.58968582,134.38,134.34,1.56110266]
[1768857510363,4.56957419,134.38,134.34,1.56110266]
[1768857511683,1.58968582,134.36,134.33,1.56110266]
[1768857512668,12.01207567,134.37,134.33,1.56110266]
[1768857515181,1.58968582,134.37,134.34,1.56110266]
[1768857515760,9.03186788,134.37,134.34,1.56110266]
[1768857515967,12.01175625,134.37,134.34,1.56110266]
[1768857517785,4.56957419,134.36,134.32,1.56110266]
[1768857517979,1.58968582,134.34,134.31,1.56110266]
[1768857518184,4.56957419,134.35,134.32,1.56110266]
[1768857520089,12.01303953,134.35,134.32,1.56110266]
[1768857525596,4.63954295,134.37,134.33,1.67039629]
[1768857525889,9.10147737,134.38,134.33,1.67039629]
[1768857526095,12.08136574,134.38,134.33,1.67039629]
[1768857526291,1.65965458,134.38,134.33,1.67039629]
[1768857526475,4.63954295,134.38,134.33,1.67039629]
[1768857526676,4.63954295,134.39,134.34,1.67039629]
[1768857526879,4.63954295,134.39,134.35,1.67039629]
[1768857527676,1.65965458,134.39,134.36,1.67039629]
[1768857527876,12.08025835,134.4,134.36,1.67039629]
[1768857528199,4.63954295,134.4,134.36,1.67039629]
[1768857528379,1.65965458,134.4,134.36,1.67039629]
[1768857528699,1.65965458,134.4,134.37,1.67039629]
[1768857531800,12.07974417,134.41,134.37,1.67039629]
[1768857532774,1.65965458,134.41,134.38,1.64318362]
[1768857532993,111.19026887,134.42,134.38,1.64318362]
[1768857533389,103.7507459,134.42,134.39,1.64318362]
[1768857533591,1.6507459,134.42,134.39,1.64318362]
[1768857533787,9.09017399,134.42,134.39,1.64318362]
[1768857534599,1.6507459,134.39,134.35,1.64318362]
[1768857534804,4.63063427,134.39,134.35,1.64318362]
[1768857536500,4.63063427,134.39,134.35,9.08637425]
[1768857539700,4.63063427,134.39,134.36,1.64318362]
[1768857540918,1.6507459,134.38,134.35,1.64318362]
[1768857542375,12.07127091,134.38,134.35,1.64318362]
[1768857542599,9.09235568,134.38,134.35,1.64318362]
[1768857543405,1.6507459,134.38,134.35,1.64318362]
[1768857545004,9.09204089,134.39,134.36,1.64318362]
[1768857545307,1.6507459,134.4,134.37,1.64318362]
[1768857549799,1.6507459,134.4,134.37,4.62209885]
[1768857551512,9.09155254,134.4,134.37,1.64318362]
[1768857552200,9.0908613,134.41,134.38,1.64318362]
[1768857552387,9.0908613,134.41,134.38,1.61318365]
[1768857552591,9.0908613,134.41,134.38,1.58318366]
[1768857552813,9.09135463,134.4,134.36,2.97891523]
[1768857553310,1.6507459,134.39,134.35,2.97891523]
[1768857553708,1.6507459,134.39,134.34,10.42271454]
[1768857554514,1.6507459,134.39,134.35,9.08642343]
[1768857554716,9.09182779,134.39,134.36,1.64318362]
[1768857557320,1.6507459,134.39,134.36,1.64318362]
[1768857558309,1.6507459,134.4,134.37,1.64318362]
[1768857558512,9.09089509,134.41,134.38,1.64318362]
[1768857565626,12.06981032,134.41,134.38,1.64318362]
[1768857567623,9.09089509,134.41,134.38,1.64318362]
[1768857567927,12.06981032,134.41,134.38,1.64318362]
[1768857568627,1.86649387,134.4,134.38,1.64318362]
[1768857569123,9.30701621,134.4,134.38,1.64318362]
[1768857569904,12.28593144,134.4,134.38,1.64318362]
[1768857570831,1.86649387,134.39,134.36,1.842507]
[1768857571433,1.86649387,134.39,134.36,9.28514617]
[1768857571731,1.86649387,134.39,134.37,1.842507]
[1768857581645,9.30755561,134.39,134.36,1.77340364]
[1768857581937,1.91635577,134.38,134.35,1.77340364]
[1768857582721,4.895271,134.38,134.35,1.77340364]
[1768857584343,9.35807014,134.38,134.35,1.77340364]
[1768857584543,12.33698537,134.38,134.35,1.77340364]
[1768857586454,1.91635577,134.35,134.32,1.77340364]
[1768857586745,1.91635577,134.34,134.32,1.77340364]
[1768857586947,1.85635574,134.34,134.31,1.77340364]
[1768857587726,4.83527097,134.34,134.31,1.77340364]
[1768857588547,16.3,134.38,134.29,25.51973442]
[1768857588752,2.97891523,134.33,134.29,1.77340364]
[1768857588956,4.895271,134.33,134.29,1.77340364]
[1768857589453,2.97891523,134.32,134.29,1.77340364]
[1768857590249,4.895271,134.33,134.29,1.77340364]
[1768857590927,2.97891523,134.32,134.29,1.77340364]
[1768857593329,1.88361384,134.31,134.29,1.77340364]
[1768857593646,4.80252905,134.31,134.29,1.77340364]
[1768857596542,4.80252905,134.31,134.28,1.9398973]
[1768857596937,1.82361382,134.31,134.28,1.9398973]
[1768857597137,4.80252905,134.31,134.28,1.9398973]
[1768857597837,2.97891523,134.3,134.28,1.9398973]
[1768857599247,4.80252905,134.31,134.28,1.9398973]
[1768857601454,2.97891523,134.31,134.28,1.9398973]
[1768857601649,12.30751603,134.32,134.28,1.9398973]
[1768857602334,9.3286008,134.32,134.29,1.9398973]
[1768857602537,1.88361384,134.35,134.3,1.9398973]
[1768857602737,4.86252907,134.34,134.3,1.9398973]
[1768857602945,2.98212593,134.31,134.28,18.2398973]
[1768857603147,2.98212593,134.31,134.29,1.9398973]
[1768857603356,2.98212593,134.31,134.28,1.9398973]
[1768857603357,10.42814231,134.3,134.28,1.9398973]
[1768857603862,2.98212593,134.3,134.28,1.9398973]
[1768857605045,9.32934504,134.31,134.28,1.9398973]
[1768857605254,12.31147097,134.31,134.28,1.9398973]
[1768857605843,1.88361384,134.31,134.28,1.9398973]
[1768857606159,4.86573977,134.31,134.28,1.9398973]
[1768857609773,1.88361384,134.31,134.28,1.9398973]
[1768857609975,4.86573977,134.31,134.28,1.9398973]
[1768857612661,9.32916515,134.31,134.28,1.9398973]
[1768857612864,12.31129108,134.31,134.28,1.9398973]
[1768857613971,12.25129108,134.31,134.28,1.9398973]
[1768857619471,2.98212593,134.3,134.28,1.9398973]
[1768857619671,2.92212593,134.3,134.28,1.9398973]
[1768857620668,12.25129108,134.31,134.28,1.9398973]
[1768857624591,4.80573977,134.31,134.28,1.9398973]
[1768857626677,2.98212593,134.32,134.29,1.86777103]
[1768857626886,12.36964888,134.33,134.29,1.86777103]
[1768857627075,10.42676705,134.33,134.29,1.86777103]
[1768857627391,1.94288183,134.32,134.29,1.86777103]
[1768857629187,4.92500776,134.32,134.29,1.86777103]
[1768857631394,114.4690789,134.34,134.3,1.86777103]
[1768857631583,12.3690789,134.34,134.3,1.86777103]
[1768857631782,1.94288183,134.36,134.3,4.84989696]
[1768857631980,4.92500776,134.35,134.31,1.86777103]
[1768857632168,1.94288183,134.35,134.31,2.98212593]
[1768857632368,1.94288183,134.35,134.32,1.86777103]
[1768857636188,12.36719729,134.37,134.34,1.86777103]
[1768857636373,9.38507136,134.37,134.34,1.83777107]
[1768857638286,12.36719729,134.37,134.34,1.83777107]
[1768857638995,1.94288183,134.35,134.33,1.86777103]
[1768857639204,1.94288183,134.35,134.32,21.14989696]
[1768857639905,1.94288183,134.35,134.32,28.59468923]
[1768857640887,1.94288183,134.35,134.32,26.7269182]
[1768857641094,1.94288183,134.35,134.33,1.95325072]
[1768857641882,1.97069212,134.36,134.33,1.95325072]
[1768857642700,1.97069212,134.36,134.33,4.93537665]
[1768857652908,9.41347986,134.36,134.33,1.95325072]
[1768857653095,9.41347986,134.36,134.33,4.93537665]
[1768857656510,9.41347986,134.36,134.33,1.95325072]
[1768857656692,9.41347986,134.36,134.33,4.93537665]
[1768857658706,1.97069212,134.36,134.33,4.93537665]
[1768857662215,9.41349066,134.36,134.33,4.93537665]
[1768857662406,1.87459175,134.35,134.31,1.97532796]
[1768857662611,1.87459175,134.35,134.31,4.95745389]
[1768857663002,1.87459175,134.35,134.31,12.40290172]
[1768857663916,1.87459175,134.35,134.31,9.42077579]
[1768857665798,1.87459175,134.35,134.31,12.40135699]
[1768857666721,1.87459175,134.35,134.31,9.42077579]
[1768857666907,1.87459175,134.35,134.31,12.40135699]
[1768857671530,1.87459175,134.34,134.3,9.42105532]
[1768857671716,10.4238971,134.35,134.28,9.42205581]
[1768857671717,1.87459175,134.32,134.28,9.42205581]
[1768857672139,1.87459175,134.32,134.29,1.97532796]
[1768857672318,1.87459175,134.32,134.29,9.42179508]
[1768857674930,1.87459175,134.32,134.29,1.97532796]
[1768857676033,4.85517295,134.32,134.29,1.97532796]
[1768857684734,1.87459175,134.32,134.29,1.97532796]
[1768857687644,9.31953418,134.32,134.29,1.97532796]
[1768857687945,12.30011538,134.32,134.29,1.97532796]
[1768857690543,9.31953418,134.32,134.29,1.97532796]
[1768857691850,12.30011538,134.32,134.29,1.97532796]
[1768857692748,9.31953418,134.32,134.29,1.97532796]
[1768857693047,12.30011538,134.32,134.29,1.97532796]
[1768857695041,1.966306,134.33,134.3,1.87475459]
[1768857701848,12.45837088,134.34,134.3,1.87475459]
[1768857702653,2.03357304,134.36,134.32,1.89995987]
[1768857702948,2.03357304,134.36,134.33,1.86995988]
[1768857703537,9.47638164,134.36,134.33,1.86995988]
[1768857705337,2.03357304,134.36,134.33,1.86995988]
[1768857705545,2.03357304,134.38,134.35,1.89995987]
[1768857705943,5.01415424,134.38,134.35,1.89995987]
[1768857706146,2.03357304,134.37,134.35,1.89995987]
[1768857706448,2.03357304,134.37,134.33,1.89995987]
[1768857706449,2.03357304,134.36,134.33,1.89995987]
[1768857706649,2.03357304,134.35,134.33,1.89995987]
[1768857717947,1.91661312,134.36,134.33,4.88054107]
[1768857719071,1.91661312,134.36,134.33,1.89995987]
[1768857719371,1.91661312,134.36,134.33,4.88054107]
[1768857722572,1.91661312,134.36,134.33,12.32469078]
[1768857723874,1.91661312,134.38,134.35,2.02565317]
[1768857724057,1.91661312,134.38,134.35,5.00623437]
[1768857725180,1.91661312,134.38,134.35,12.44937243]
[1768857725371,1.91661312,134.38,134.36,2.9805812]
[1768857726374,1.91661312,134.39,134.36,5.00623437]
[1768857726869,1.91661312,134.39,134.36,5.00366475]
[1768857727667,1.91661312,134.39,134.36,12.44620272]
[1768857731666,1.91661312,134.39,134.36,5.00366475]
[1768857735063,9.3568107,134.41,134.38,2.02565317]
[1768857735271,1.91661312,134.4,134.38,2.02565317]
[1768857737089,9.3568107,134.41,134.38,2.02565317]
[1768857737773,9.3568107,134.41,134.38,5.00366475]
[1768857740883,1.91661312,134.41,134.38,12.44505556]
[1768857743388,1.92157297,134.42,134.39,4.9930829]
[1768857743766,1.92157297,134.42,134.39,4.96308295]
[1768857743968,1.92157297,134.42,134.39,4.93308296]
[1768857744372,9.36099174,134.42,134.39,2.97801158]
[1768857745790,1.92157297,134.43,134.39,10.41871061]
[1768857745990,1.92157297,134.43,134.4,2.01507132]
[1768857746186,1.92157297,134.43,134.4,1.98507133]
[1768857747380,1.92157297,134.43,134.4,4.96308291]
[1768857748291,1.92157297,134.43,134.4,10.41841635]
[1768857748591,1.92157297,134.44,134.41,4.9930829]
[1768857748792,1.92157297,134.44,134.41,2.01507132]
[1768857749697,9.35999641,134.44,134.41,2.01507132]
[1768857750093,1.92157297,134.43,134.41,1.98507135]
[1768857754414,4.89958455,134.42,134.37,2.01507132]
[1768857754581,4.89958455,134.41,134.37,9.45692867]
[1768857754781,1.92157297,134.4,134.37,9.45692867]
[1768857757784,1.92157297,134.4,134.37,12.43494025]
[1768857758612,1.92157297,134.4,134.37,9.45692867]
[1768857758815,1.92157297,134.4,134.37,12.43494025]
[1768857759018,1.92157297,134.4,134.38,2.01507132]
[1768857759313,10.41766284,134.42,134.38,2.01507132]
[1768857759513,1.92157297,134.41,134.38,2.01507132]
[1768857763014,1.92157297,134.41,134.38,9.45654368]
[1768857767919,1.92157297,134.41,134.38,2.01507132]
[1768857768311,1.92157297,134.41,134.37,2.04567843]
[1768857768312,1.90281505,134.4,134.37,2.04567843]
[1768857768518,1.90281505,134.4,134.36,9.48806802]
[1768857771321,1.90281505,134.4,134.37,2.04567843]
[1768857771723,4.88082663,134.4,134.37,2.04567843]
[1768857772027,1.90281505,134.4,134.37,2.04567843]
[1768857773927,1.90281505,134.4,134.37,9.48779545]
[1768857777528,1.90281505,134.4,134.37,2.04567843]
[1768857777711,1.90281505,134.4,134.37,9.48771103]
[1768857778637,1.90281505,134.4,134.38,2.01508032]
[1768857778819,4.90001367,134.43,134.39,2.01508032]
[1768857779021,1.92200209,134.42,134.39,2.01508032]
[1768857779414,1.92200209,134.42,134.39,9.45609464]
[1768857780618,1.92200209,134.42,134.39,12.43410622]
[1768857781723,1.92200209,134.42,134.39,2.01508032]
[1768857782836,1.92200209,134.41,134.39,2.01508032]
[1768857783217,1.92200209,134.41,134.38,7.44152252]
[1768857783740,1.92200209,134.41,134.38,9.45660284]
[1768857786838,1.92200209,134.41,134.38,12.43461442]
[1768857788226,1.92200209,134.41,134.38,9.45660284]
[1768857800550,1.92200209,134.41,134.38,2.01508032]
[1768857802942,1.92200209,134.41,134.38,9.45666091]
[1768857805367,1.99695589,134.4,134.38,2.01508032]
[1768857805733,1.99695589,134.4,134.36,9.40041902]
[1768857805942,1.99695589,134.39,134.36,9.40041902]
[1768857810295,1.99695589,134.39,134.37,1.95802747]
[1768857811006,1.99695589,134.4,134.37,1.95802747]
[1768857811197,1.99695589,134.4,134.38,1.95802747]
[1768857817015,1.99695589,134.41,134.38,1.95802747]
[1768857826053,9.43697508,134.41,134.38,1.95802747]
[1768857828142,1.99695589,134.41,134.38,1.95802747]
[1768857829637,9.43691636,134.41,134.38,1.95802747]
[1768857836045,1.99695589,134.41,134.38,1.95802747]
[1768857838946,1.92886474,134.4,134.36,2.04831878]
[1768857839939,1.92886474,134.4,134.34,7.44342478]
[1768857840142,1.92886474,134.4,134.35,2.04831878]
[1768857842250,1.92886474,134.38,134.35,2.04831878]
[1768857843853,1.92886474,134.38,134.34,2.04831878]
[1768857844233,7.44194256,134.38,134.34,2.04831878]
[1768857844441,1.92886474,134.37,134.34,2.04831878]
[1768857845847,1.92886474,134.36,134.33,2.04831878]
[1768857848658,1.92886474,134.35,134.33,2.04831878]
[1768857848868,1.92886474,134.35,134.31,2.04831878]
[1768857849158,1.92886474,134.35,134.31,9.49364503]
[1768857849348,1.92886474,134.35,134.32,9.49322098]
[1768857849852,1.92886474,134.35,134.32,2.04831878]
[1768857851150,9.37214129,134.35,134.32,2.04831878]
[1768857853666,1.92886474,134.35,134.32,2.04831878]
[1768857853962,9.37179162,134.36,134.32,2.04831878]
[1768857854460,1.92886474,134.35,134.32,2.04831878]
[1768857859269,9.37126941,134.37,134.33,2.04831878]
[1768857862448,12.35130354,134.37,134.33,2.04831878]
[1768857865367,9.37126941,134.37,134.33,2.04831878]
[1768857865558,12.35130354,134.37,134.33,2.04831878]
[1768857866474,9.37126941,134.37,134.33,2.04831878]
[1768857866658,12.35130354,134.37,134.33,2.04831878]
[1768857867580,12.35130354,134.37,134.33,2.98003413]
[1768857867880,12.35130354,134.37,134.34,2.00349309]
[1768857874886,9.37126941,134.37,134.34,2.00349309]
[1768857876097,12.35130354,134.37,134.34,2.00349309]
[1768857878989,9.37126941,134.37,134.34,2.00349309]
[1768857882294,9.49271644,134.36,134.34,2.00349309]
[1768857882506,7.44269541,134.36,134.34,2.00349309]
[1768857882702,9.49271644,134.36,134.33,4.90111341]
[1768857883210,2.05002103,134.35,134.33,4.90111341]
[1768857883901,2.05002103,134.35,134.33,1.92107928]
[1768857884108,9.49330507,134.35,134.33,1.92107928]
[1768857890815,2.05002103,134.35,134.33,1.92107928]
[1768857893922,2.05002103,134.35,134.31,28.57706826]
[1768857894119,2.05002103,134.35,134.31,21.13185597]
[1768857894120,1.96464388,134.34,134.31,21.13185597]
[1768857895923,1.96464388,134.34,134.31,4.83185597]
[1768857896629,1.96464388,134.34,134.31,12.2772954]
[1768857900701,1.96464388,134.33,134.31,1.85182184]
[1768857901027,18.60492216,134.38,134.32,1.85182184]
[1768857901231,18.60492216,134.38,134.33,1.85182184]
[1768857901232,2.98003413,134.37,134.33,1.85182184]
[1768857901413,2.98003413,134.37,134.32,4.83185597]
[1768857902328,7.44269127,134.36,134.32,1.85182184]
[1768857902508,7.44269127,134.36,134.33,1.85182184]
[1768857902905,9.40733515,134.36,134.33,1.85182184]
[1768857903713,1.96464388,134.36,134.33,1.85182184]
[1768857904412,9.40735863,134.36,134.33,1.85182184]
[1768857910634,1.96464388,134.37,134.34,1.85182184]
[1768857911841,1.96464388,134.35,134.32,18.15182184]
[1768857912620,1.96464388,134.35,134.33,1.85182184]
[1768857916841,1.96464388,134.35,134.32,16.3]
[1768857917050,1.96464388,134.35,134.32,18.15182184]
[1768857917426,1.96464388,134.35,134.33,1.85182184]
[1768857933451,1.96464388,134.35,134.32,2.97949274]
[1768857933661,1.96464388,134.35,134.32,1.93162457]
[1768857934354,1.89678634,134.34,134.32,1.93162457]
[1768857934843,1.89678634,134.34,134.31,1.93162457]
[1768857936571,1.89678634,134.33,134.29,12.35761698]
[1768857936744,1.89678634,134.32,134.29,9.37812424]
[1768857937143,1.89678634,134.32,134.3,1.93162457]
[1768857939037,2.97949274,134.33,134.3,1.93162457]
[1768857939237,4.87627908,134.33,134.3,1.93162457]
[1768857939483,1.89678634,134.3,134.28,16.3]
[1768857939776,4.87627908,134.31,134.28,18.23162457]
[1768857940380,1.89678634,134.31,134.28,18.23162457]
[1768857941143,1.89678634,134.31,134.28,1.93162457]
[1768857945162,9.34225722,134.31,134.28,1.93162457]
[1768857948688,9.34225722,134.31,134.28,4.91111731]
[1768857951887,7.44517166,134.32,134.29,1.86988298]
[1768857952189,20.61851646,134.33,134.31,1.86988298]
[1768857952190,2.00763282,134.33,134.31,1.86988298]
[1768857952375,2.00763282,134.33,134.3,4.84937572]
[1768857952576,2.00763282,134.33,134.3,1.86988298]
[1768857953494,9.4523342,134.33,134.3,1.86988298]
[1768857955183,1.98631453,134.32,134.3,1.86988298]
[1768857955496,9.43123696,134.32,134.3,1.86988298]
[1768857956491,9.43123696,134.32,134.29,4.96271038]
[1768857957608,9.43123696,134.32,134.3,1.98321764]
[1768857960008,1.98631453,134.32,134.3,1.98321764]
[1768857960210,9.43122805,134.32,134.3,1.98321764]
[1768857964413,1.98631453,134.3,134.27,1.98321764]
[1768857964604,9.43260835,134.3,134.27,1.98321764]
[1768857974811,9.43296695,134.29,134.27,1.98321764]
[1768857975019,9.43296695,134.29,134.26,21.26593874]
[1768857975923,1.98631453,134.27,134.24,19.4027211]
[1768857976125,1.98631453,134.27,134.24,0.1]
[1768857976911,1.98631453,134.26,134.24,0.1]
[1768857977116,9.43444188,134.27,134.24,0.1]
[1768857977907,9.43444188,134.27,134.24,2.08321764]
[1768857978724,1.98631453,134.25,134.24,0.1]
[1768857978924,1.92631451,134.25,134.24,0.1]
[1768857979514,1.8663145,134.25,134.24,0.1]
[1768857979815,7.44830702,134.26,134.24,0.1]
[1768857980909,7.44768004,134.27,134.24,0.1]
[1768857981737,1.98631453,134.26,134.24,0.1]
[1768857983515,9.43458664,134.26,134.24,0.1]
[1768857985236,1.98631453,134.26,134.24,0.1]
[1768857985441,1.98631453,134.26,134.24,2.13188911]
[1768857986012,9.45566587,134.28,134.26,2.03188911]
[1768857986328,9.45566587,134.28,134.25,5.01461021]
[1768857987254,9.45566587,134.28,134.25,2.03188911]
[1768857987826,2.0082539,134.27,134.24,2.13188911]
[1768857989946,2.0082539,134.26,134.24,0.1]
[1768857994755,2.0082539,134.26,134.23,7.44980792]
[1768857995143,2.0082539,134.26,134.23,9.48169703]
[1768857996251,10.4300522,134.28,134.24,2.03188911]
[1768857996449,4.990975,134.27,134.24,2.03188911]
[1768857997658,2.0082539,134.27,134.24,2.03188911]
[1768857998252,2.0082539,134.27,134.23,7.44980792]
[1768857998456,2.0082539,134.25,134.23,7.44980792]
[1768857998654,1.94825389,134.25,134.23,9.48169703]
[1768857998840,2.9827211,134.27,134.23,9.48169703]
[1768858000756,2.0082539,134.26,134.23,9.48169703]
[1768858002444,2.0082539,134.26,134.24,1.93193556]
[1768858002740,4.93871236,134.27,134.24,1.93193556]
[1768858004365,1.95599126,134.26,134.23,9.38174348]
[1768858006767,4.93871236,134.27,134.24,1.93193556]
[1768858006947,1.95599126,134.27,134.24,1.93193556]
[1768858007345,4.93871236,134.28,134.24,1.93193556]
[1768858008770,1.95599126,134.27,134.24,9.38103595]
[1768858009068,9.4026508,134.29,134.26,1.93193556]
[1768858009368,1.95599126,134.27,134.25,1.93193556]
[1768858009969,2.9827211,134.33,134.25,1.93193556]
[1768858009970,1.95599126,134.28,134.25,1.93193556]
[1768858011578,1.95599126,134.28,134.25,9.38052484]
[1768858012463,1.95599126,134.28,134.25,12.36324594]
[1768858012663,18.61406287,134.31,134.26,4.91465666]
[1768858012664,1.95599126,134.29,134.26,4.91465666]
[1768858013974,1.95599126,134.29,134.26,10.43074768]
[1768858014178,1.95599126,134.29,134.27,2.02903495]
[1768858014477,2.07425033,134.3,134.27,5.01175605]
[1768858014779,2.07425033,134.3,134.27,2.02903495]
[1768858014966,2.07425033,134.3,134.27,5.01175605]
[1768858015169,2.07425033,134.3,134.27,2.02903495]
[1768858019083,2.07425033,134.3,134.27,5.01175605]
[1768858019380,2.07425033,134.3,134.27,12.45931449]
[1768858019572,2.07425033,134.31,134.28,5.01175605]
[1768858019974,2.07425033,134.31,134.29,2.02903495]
[1768858020285,2.07425033,134.32,134.29,5.01175605]
[1768858023777,2.07425033,134.32,134.29,2.02903495]
[1768858026386,2.07425033,134.31,134.27,9.47648191]
[1768858026587,2.07425033,134.31,134.27,28.77920301]
[1768858026786,2.07425033,134.31,134.28,2.02903495]
[1768858027992,2.07425033,134.31,134.29,2.02903495]
[1768858035002,2.07425033,134.31,134.28,2.02903495]
[1768858035600,2.07425033,134.31,134.28,9.47614417]
[1768858036596,2.07425033,134.31,134.28,12.45787229]
[1768858038501,2.07425033,134.31,134.28,5.01076307]
[1768858038687,2.07425033,134.31,134.28,2.02903495]
[1768858040682,2.07425033,134.31,134.28,9.47614446]
[1768858046881,2.07425033,134.31,134.29,2.14124062]
[1768858048599,2.07425033,134.31,134.29,9.5878037]
[1768858056306,2.13269872,134.33,134.29,7.44656308]
[1768858056512,2.13269872,134.33,134.3,2.14124062]
[1768858056814,2.13269872,134.33,134.3,2.11124063]
[1768858057113,2.13269872,134.32,134.28,10.42856974]
[1768858058701,2.13269872,134.32,134.29,2.14124062]